bitfinex-derivatives/quotes_ETHF0:USTF0_20251117
["timestamp","ask_amount","ask_price","bid_price","bid_amount"]
[1763403570599,3.2155731,3053.9,3053.1,3.2078]
[1763403571199,0.0077731,3053.9,3053.5,3.2078]
[1763403573611,3.2155731,3053.9,3053.0,3.2078]
[1763403575216,3.2155731,3053.9,3052.2,0.00742218]
[1763403575217,3.2078,3053.4,3052.6,3.2078]
[1763403575512,0.5999,3052.8,3052.2,0.00742218]
[1763403575707,3.2078,3052.3,3051.3,3.2078]
[1763403576007,3.2078,3051.9,3050.8,3.2078]
[1763403576209,3.2078,3052.6,3051.6,3.2078]
[1763403576505,0.5999,3053.6,3052.4,3.2078]
[1763403576506,3.2078,3053.5,3052.4,3.2078]
[1763403576812,3.2078,3053.5,3052.6,0.00491053]
[1763403576813,0.00491054,3053.3,3052.6,0.00491053]
[1763403577008,0.00491054,3053.3,3052.8,3.2078]
[1763403577311,0.00491054,3053.3,3053.2,3.2078]
[1763403577714,0.00286256,3053.9,3053.2,3.2078]
[1763403577715,0.00286256,3053.9,3053.2,12.4822]
[1763403577900,3.2078,3055.2,3053.8,3.2078]
[1763403578102,0.5999,3055.5,3052.9,6.865]
[1763403578103,0.5999,3055.5,3054.7,3.2078]
[1763403578306,3.2078,3055.6,3053.7,0.4443]
[1763403578502,3.2078,3055.2,3054.8,3.2078]
[1763403578911,0.00376535,3055.2,3054.8,3.21027796]
[1763403579314,0.5999,3055.0,3054.8,0.00247796]
[1763403579507,3.8077,3055.0,3054.8,0.00247796]
[1763403579707,0.5999,3055.0,3054.8,0.00247796]
[1763403579906,0.00376535,3055.2,3054.8,0.00247796]
[1763403580722,3.21156535,3055.2,3054.8,0.00247796]
[1763403581011,0.5999,3055.0,3054.8,0.00247796]
[1763403581214,6.5999,3055.0,3054.7,0.00491054]
[1763403581415,3.2078,3054.8,3054.0,3.2078]
[1763403581717,0.5999,3055.0,3054.4,3.2078]
[1763403582415,0.5999,3055.0,3054.4,3.21682082]
[1763403582713,3.2078,3054.8,3054.4,0.00902082]
[1763403582908,3.2078,3054.9,3054.4,0.00902082]
[1763403583108,0.5999,3055.0,3054.5,3.2078]
[1763403583612,3.8077,3055.0,3054.4,0.00902082]
[1763403585015,0.71082511,3054.9,3054.4,0.00902082]
[1763403586416,3.8077,3055.0,3054.4,0.00902082]
[1763403586619,3.2078,3055.0,3054.4,0.00902082]
[1763403587009,0.00376535,3055.2,3054.5,3.2078]
[1763403587214,0.00376535,3055.2,3054.9,3.2078]
[1763403588912,0.60366535,3055.2,3054.9,3.2078]
[1763403589418,3.2078,3055.1,3054.4,3.21682082]
[1763403589715,0.71136396,3055.0,3054.4,3.21682082]
[1763403590212,3.2078,3054.7,3054.4,0.00902082]
[1763403590516,3.2078,3055.1,3054.4,3.21682082]
[1763403590716,0.71118876,3055.0,3054.4,3.21682082]
[1763403591913,3.2078,3055.1,3054.4,3.21682082]
[1763403593812,0.71135631,3055.0,3054.4,3.21682082]
[1763403595320,0.71135631,3055.0,3054.4,0.00902082]
[1763403595912,3.2078,3055.1,3054.4,0.00902082]
[1763403596120,3.2078,3054.7,3054.4,0.00902082]
[1763403596818,3.2078,3055.1,3054.4,0.00902082]
[1763403597020,0.7117146,3055.0,3054.4,0.00902082]
[1763403598724,3.2078,3054.7,3054.4,0.00902082]
[1763403599522,0.71230066,3054.6,3054.4,0.00902082]
[1763403600222,3.2078,3054.7,3054.4,0.00902082]
[1763403600421,4.32999825,3055.1,3054.4,3.21682082]
[1763403600621,3.2078,3055.1,3054.4,3.21682082]
[1763403600820,3.2078,3055.1,3054.4,0.00902082]
[1763403601125,3.2078,3054.7,3054.4,0.00902082]
[1763403601322,0.00376535,3055.2,3054.5,3.2078]
[1763403601520,0.00491054,3055.3,3054.5,3.2078]
[1763403601717,3.2078,3055.0,3054.5,3.2078]
[1763403602121,3.2078,3054.6,3054.4,0.00902082]
[1763403602321,0.5296,3054.4,3053.5,3.2078]
[1763403602527,3.7374,3053.6,3052.2,3.2078]
[1763403602726,3.2078,3053.2,3052.2,3.2078]
[1763403602918,2.23360866,3053.6,3052.6,3.2078]
[1763403602919,3.2078,3053.6,3052.6,3.2078]
[1763403603123,0.5296,3054.4,3053.0,3.2078]
[1763403603324,0.5296,3054.4,3053.0,3.21050942]
[1763403603325,3.2078,3053.8,3053.0,3.21050942]
[1763403603930,0.00491054,3054.0,3053.4,3.2078]
[1763403604229,0.00491054,3054.0,3053.0,0.00270942]
[1763403604230,0.0042512,3054.4,3053.8,3.2078]
[1763403604426,0.0042512,3054.4,3053.6,0.1683]
[1763403604427,0.0042512,3054.4,3054.2,3.2078]
[1763403604733,3.2078,3054.7,3054.2,3.2078]
[1763403605127,3.2078,3055.7,3054.6,3.2078]
[1763403605423,3.2078,3055.7,3054.7,3.2078]
[1763403605631,3.2103924,3055.7,3055.1,3.2078]
[1763403606030,0.0025924,3055.7,3054.3,3.2078]
[1763403606224,0.00491054,3055.3,3055.1,3.2078]
[1763403607331,3.21271054,3055.3,3054.7,3.2078]
[1763403607630,0.00491054,3055.3,3054.7,3.2078]
[1763403609029,3.21271054,3055.3,3054.7,3.2078]
[1763403609334,3.2078,3054.9,3054.3,3.2078]
[1763403610728,3.7374,3054.4,3054.1,0.00491054]
[1763403611233,8.27201154,3054.3,3053.0,0.00270942]
[1763403611427,4.34455021,3053.1,3052.1,3.2078]
[1763403611632,3.2078,3052.6,3051.6,3.2078]
[1763403612021,1.66635021,3052.8,3051.6,3.2078]
[1763403612022,3.2078,3052.2,3051.6,3.2078]
[1763403612225,3.2078,3051.8,3050.3,1.71044878]
[1763403612528,3.21271054,3051.4,3050.7,0.00491054]
[1763403613028,3.21271054,3051.4,3050.2,3.19212898]
[1763403614139,0.00491054,3051.4,3050.7,3.2078]
[1763403614326,0.00491054,3051.4,3050.2,0.00244529]
[1763403614327,0.00491054,3051.4,3050.3,3.2078]
[1763403614531,3.2078,3050.5,3050.2,0.00244529]
[1763403616331,3.2078,3050.5,3049.5,3.2078]
[1763403616735,3.7374,3050.1,3049.5,3.2078]
[1763403617233,3.7374,3050.1,3049.5,0.00291978]
[1763403618543,3.2078,3049.6,3049.5,0.00291978]
[1763403618842,0.00414589,3049.6,3049.5,0.00291978]
[1763403619740,3.21194589,3049.6,3049.5,0.00291978]
[1763403620038,12.49394589,3049.6,3048.0,3.2078]
[1763403620344,3.2078,3048.6,3047.6,3.2078]
[1763403620534,3.2078,3048.6,3046.2,0.25829273]
[1763403620535,3.21271876,3049.1,3048.0,3.2078]
[1763403620740,3.21271876,3049.1,3048.4,3.2078]
[1763403621043,0.00414589,3049.6,3048.4,3.2078]
[1763403621044,3.2078,3049.5,3048.4,3.21167233]
[1763403621235,0.00414589,3049.6,3049.4,3.2078]
[1763403621430,0.5296,3051.0,3049.4,3.2078]
[1763403621431,3.2078,3050.8,3049.4,3.2078]
[1763403621740,1.13675021,3053.5,3051.0,3.2078]
[1763403622042,2.20532532,3053.7,3053.0,3.2078]
[1763403622043,0.5002,3053.7,3053.0,3.2078]
[1763403622339,0.5002,3053.7,3052.6,3.2078]
[1763403622340,0.5002,3053.0,3052.6,3.2078]
[1763403622539,0.5002,3053.0,3052.6,3.21135978]
[1763403622746,0.5002,3053.0,3052.7,3.2078]
[1763403623247,3.71695908,3053.7,3052.7,3.2078]
[1763403623441,0.50915908,3053.7,3053.3,3.2078]
[1763403624342,0.5002,3054.6,3053.4,9.2744]
[1763403624532,0.5002,3055.5,3054.5,3.2078]
[1763403624736,3.2078,3056.4,3055.4,3.2078]
[1763403624941,0.5002,3056.0,3055.4,3.2078]
[1763403625138,3.2078,3055.9,3055.4,3.2078]
[1763403625338,0.5002,3055.0,3054.4,3.2078]
[1763403625740,0.5002,3055.0,3054.0,3.2078]
[1763403626141,0.5002,3055.0,3054.4,3.2078]
[1763403626347,0.5002,3055.0,3054.4,3.21028687]
[1763403626547,0.50510998,3055.0,3054.4,3.21519685]
[1763403626943,0.50510998,3055.0,3054.0,3.2078]
[1763403627146,3.2078,3054.6,3054.0,3.2078]
[1763403627947,0.4761,3054.0,3052.5,3.2078]
[1763403628151,0.00490998,3053.6,3052.7,3.2078]
[1763403628348,0.00737264,3053.6,3052.7,3.2078]
[1763403629249,3.2078,3053.4,3052.7,3.2078]
[1763403629446,3.2078,3052.9,3052.3,0.00376979]
[1763403629745,3.2078,3052.4,3051.5,3.2078]
[1763403629953,3.2078,3052.0,3051.5,3.2078]
[1763403630152,0.00490998,3052.3,3051.5,3.2078]
[1763403630648,0.00490998,3052.3,3051.5,3.21034075]
[1763403631056,3.2078,3052.5,3051.5,3.21034075]
[1763403631057,3.2078,3052.9,3052.1,3.2078]
[1763403631349,3.2078,3052.9,3052.4,0.53119]
[1763403631553,3.2078,3052.9,3052.1,3.2078]
[1763403631941,3.2078,3052.9,3052.2,0.53123]
[1763403632157,3.2078,3052.9,3052.3,0.53121]
[1763403632158,3.21270998,3052.9,3052.3,0.53121]
[1763403632455,3.21270998,3052.9,3052.1,3.2078]
[1763403632640,3.21270998,3052.9,3051.6,0.00490998]
[1763403632641,3.2078,3052.5,3051.7,3.2078]
[1763403632847,0.4761,3052.0,3051.6,0.00490998]
[1763403633045,3.2078,3051.7,3051.6,0.00490998]
[1763403633752,3.2078,3051.7,3050.4,3.2078]
[1763403633941,3.2078,3051.2,3050.4,3.2078]
[1763403634141,3.6839,3052.0,3050.8,3.73927]
[1763403634341,3.6839,3052.0,3049.6,2.501]
[1763403634342,3.2078,3052.0,3051.2,3.2078]
[1763403634544,0.00490998,3051.9,3051.2,3.2078]
[1763403634758,0.00490998,3051.9,3051.2,6.48845177]
[1763403634942,0.00490998,3051.9,3051.2,3.21165177]
[1763403635139,0.00490998,3051.9,3051.2,6.48845177]
[1763403635344,3.2078,3052.9,3051.8,3.2078]
[1763403635747,3.2078,3053.5,3052.7,3.2078]
[1763403636142,1.703,3054.7,3053.1,3.2078]
[1763403636143,3.2078,3054.1,3053.1,3.2078]
[1763403636453,3.2078,3054.1,3052.7,3.2752]
[1763403636454,0.00490998,3053.9,3053.7,3.2078]
[1763403636652,0.00273516,3054.1,3053.7,3.21144477]
[1763403637455,0.00273516,3054.1,3053.8,0.53096]
[1763403637755,3.2078,3054.7,3053.7,3.21144477]
[1763403637756,0.00490998,3054.3,3053.7,3.21144477]
[1763403638053,3.21270998,3054.3,3053.7,3.21144477]
[1763403638249,3.2078,3053.9,3053.7,0.00364477]
[1763403638650,3.21131229,3053.9,3053.7,0.00364477]
[1763403639147,0.00490998,3054.3,3053.3,0.00490998]
[1763403639148,0.00490998,3054.3,3053.6,3.2078]
[1763403639338,0.00490998,3054.3,3053.3,4.43190998]
[1763403639339,0.00490998,3054.3,3054.1,0.5309]
[1763403639540,0.00490998,3054.3,3054.0,3.2078]
[1763403639739,3.2078,3055.3,3054.0,3.2078]
[1763403639957,3.2078,3055.7,3054.7,3.2078]
[1763403640141,0.0038637,3055.7,3055.1,3.2078]
[1763403640645,0.0038637,3055.7,3054.7,0.00291719]
[1763403640646,3.2078,3055.4,3054.7,0.00291719]
[1763403640840,3.2078,3055.4,3055.1,0.00490998]
[1763403642351,2.4861,3057.0,3055.1,0.00490998]
[1763403642352,3.2078,3056.0,3055.1,0.00490998]
[1763403642656,3.2078,3056.8,3056.0,0.53057]
[1763403642849,3.2078,3056.8,3056.1,0.53055]
[1763403643152,3.2078,3056.8,3056.0,0.53057]
[1763403643349,0.00490998,3056.7,3056.1,0.00490998]
[1763403643544,3.2078,3057.6,3056.3,3.2078]
[1763403643749,3.2078,3057.6,3056.2,3.2712]
[1763403643750,3.2078,3057.2,3056.4,3.2078]
[1763403643956,3.2078,3057.6,3056.4,3.2078]
[1763403644145,3.2078,3057.6,3056.8,3.2078]
[1763403644558,0.00490998,3057.5,3056.8,3.2078]
[1763403646449,0.4761,3056.9,3056.8,3.2078]
[1763403646650,3.6839,3056.9,3056.1,0.00490998]
[1763403646855,3.2078,3056.3,3056.1,0.00490998]
[1763403647158,3.2078,3056.3,3055.2,3.2078]
[1763403647847,3.2078,3056.3,3055.6,3.2078]
[1763403648048,3.2078,3057.3,3056.0,3.2078]
[1763403648254,0.00418625,3057.6,3056.7,3.2078]
[1763403648454,0.00418625,3057.6,3055.6,0.00490998]
[1763403648455,0.00418625,3057.6,3057.1,3.2078]
[1763403648651,0.00418625,3057.6,3057.1,3.21044529]
[1763403649052,3.2078,3057.4,3056.4,3.2078]
[1763403649263,3.2078,3056.7,3055.6,0.00490998]
[1763403649556,0.00418625,3057.6,3055.6,0.00490998]
[1763403649557,3.2078,3056.3,3055.6,0.00490998]
[1763403650065,3.2078,3056.3,3055.6,0.00876425]
[1763403650562,3.2078,3056.7,3055.6,0.00876425]
[1763403650761,3.2078,3055.9,3055.6,0.00876425]
[1763403650964,6.4761,3055.8,3054.1,0.5309]
[1763403651153,6.4761,3055.8,3053.8,3.2078]
[1763403651154,3.2078,3055.1,3054.3,0.53086]
[1763403651360,3.2078,3055.5,3054.6,3.2078]
[1763403651754,0.4761,3055.8,3054.2,3.2078]
[1763403651755,3.2078,3054.8,3054.2,3.2078]
[1763403651961,0.4761,3054.7,3054.2,0.00756838]
[1763403652163,3.2078,3054.4,3053.7,3.2078]
[1763403652363,3.2078,3054.0,3053.1,3.2078]
[1763403653166,0.00490998,3053.9,3053.2,0.00490998]
[1763403653557,3.6839,3053.6,3053.2,0.00490998]
[1763403653761,3.6839,3053.6,3053.1,4.257e-05]
[1763403653964,3.6839,3053.6,3052.5,3.2078]
[1763403653965,3.2078,3053.2,3052.5,3.2078]
[1763403654356,3.2078,3052.8,3052.1,3.2078]
[1763403654566,3.2078,3052.4,3051.2,3.2078]
[1763403654961,3.2078,3052.0,3051.5,0.00490998]
[1763403656272,3.2078,3051.6,3051.5,0.00490998]
[1763403656467,3.2078,3052.0,3051.5,0.00490998]
[1763403657858,0.00490998,3052.1,3051.6,3.2078]
[1763403658259,3.2078,3052.0,3051.5,0.00490998]
[1763403658467,3.2078,3051.6,3051.5,0.00490998]
[1763403658666,3.2078,3051.6,3050.8,3.2078]
[1763403658872,3.2078,3051.2,3050.8,3.2078]
[1763403659670,3.2078,3051.2,3050.8,3.21051533]
[1763403660069,3.2078,3051.2,3050.8,0.00271533]
[1763403660266,3.2078,3051.2,3049.8,3.2078]
[1763403660571,3.2078,3050.6,3049.8,3.2078]
[1763403660972,3.2078,3051.0,3050.2,3.2078]
[1763403661166,3.6945,3051.4,3050.2,3.2078]
[1763403661371,0.00491819,3051.1,3050.7,3.2078]
[1763403661573,3.2078,3051.9,3050.7,3.2078]
[1763403661964,0.4867,3051.0,3050.7,3.2078]
[1763403662160,3.2078,3051.9,3050.7,3.2078]
[1763403662360,3.2078,3051.5,3050.7,3.2078]
[1763403662566,3.2078,3051.5,3050.2,0.00378643]
[1763403662567,0.4867,3051.0,3050.2,0.00378643]
[1763403662773,0.4867,3050.0,3048.9,3.2078]
[1763403662964,3.2078,3049.5,3048.9,3.2078]
[1763403663365,3.2078,3049.4,3048.4,3.2078]
[1763403663570,3.2078,3048.8,3047.9,3.2078]
[1763403663777,0.00491819,3049.2,3047.9,0.00251334]
[1763403663967,1.13675021,3051.1,3050.9,0.53146]
[1763403664167,2.80412375,3051.9,3048.0,3.67970556]
[1763403664168,1.1133516,3052.1,3051.0,12.344]
[1763403664376,3.29082375,3053.0,3051.0,12.344]
[1763403664377,0.4867,3053.0,3051.1,52.602]
[1763403664577,0.4867,3053.0,3051.1,55.878]
[1763403664776,0.231,3055.7,3052.9,0.53111]
[1763403664972,0.003166,3053.0,3052.6,0.252]
[1763403665174,0.231,3055.7,3052.6,0.252]
[1763403665373,0.4867,3055.8,3053.8,0.53095]
[1763403665567,0.4867,3055.8,3053.4,4.24]
[1763403666077,3.2078,3055.1,3054.4,3.2078]
[1763403666277,0.4867,3053.7,3053.4,0.00491819]
[1763403666477,0.4867,3053.7,3053.5,3.2078]
[1763403666679,0.32007184,3053.7,3053.5,3.2078]
[1763403667573,0.00491819,3054.2,3053.7,0.53096]
[1763403667777,0.4867,3053.7,3053.4,0.00491819]
[1763403668477,0.4867,3053.7,3052.7,0.00342301]
[1763403668779,3.2078,3052.8,3051.1,3.2078]
[1763403668975,3.2078,3051.6,3051.1,3.2078]
[1763403669279,3.2078,3051.6,3049.9,40.8]
[1763403669280,3.2078,3051.2,3050.1,3.2078]
[1763403669479,3.2078,3051.2,3050.5,3.2078]
[1763403669785,3.2078,3050.8,3050.5,0.00368635]
[1763403669981,3.2078,3050.8,3049.6,3.2078]
[1763403670277,3.6945,3049.8,3048.5,3.73968]
[1763403670487,3.2078,3049.4,3048.5,3.2078]
[1763403670873,3.6945,3049.8,3048.5,3.21180102]
[1763403671070,0.00491819,3049.3,3048.5,0.00400102]
[1763403671375,3.2078,3049.7,3048.7,3.2078]
[1763403671578,3.2078,3049.7,3048.5,0.00400102]
[1763403671579,3.2078,3050.1,3049.1,3.2078]
[1763403671984,3.2078,3049.7,3049.1,3.2078]
[1763403672171,0.00491819,3049.7,3049.5,3.2078]
[1763403672578,0.00491819,3049.7,3049.6,0.53169]
[1763403672877,0.00369542,3051.2,3051.0,0.53143]
[1763403673078,3.2078,3052.9,3051.1,6.7028]
[1763403673383,3.2078,3052.9,3052.0,3.2078]
[1763403673576,3.2078,3053.4,3052.5,3.2078]
[1763403673985,0.00491819,3053.3,3052.6,3.2078]
[1763403674169,0.00491819,3053.3,3053.1,3.2078]
[1763403674369,3.2078,3054.8,3053.1,3.2078]
[1763403674577,0.4867,3055.0,3052.7,3.2078]
[1763403674773,0.4867,3055.0,3053.1,3.2078]
[1763403674774,3.2078,3054.1,3053.1,3.2078]
[1763403674972,3.2078,3054.1,3053.5,3.2078]
[1763403675172,0.4867,3055.0,3052.8,40.8]
[1763403675173,3.2078,3054.7,3053.9,3.2078]
[1763403675378,3.2078,3054.7,3054.0,0.00491819]
[1763403675379,3.2078,3054.2,3054.0,0.00491819]
[1763403675578,3.2078,3054.2,3053.5,3.2078]
[1763403675881,3.2078,3054.2,3053.6,3.2078]
[1763403676274,3.2078,3054.2,3053.1,3.2078]
[1763403676475,0.00491819,3054.0,3053.3,0.00491819]
[1763403676697,0.00491819,3054.0,3053.5,3.2078]
[1763403676883,3.2078,3053.9,3053.5,3.2078]
[1763403677385,3.2078,3053.9,3053.1,0.00235752]
[1763403677584,3.2078,3053.4,3053.1,0.00235752]
[1763403677781,3.2078,3053.8,3053.1,0.00235752]
[1763403678084,0.6047,3053.7,3053.1,0.00235752]
[1763403678285,3.2078,3053.4,3052.3,3.2078]
[1763403678480,3.2078,3052.4,3051.9,3.2078]
[1763403678686,3.2078,3052.4,3051.5,3.2078]
[1763403678687,3.2078,3052.0,3051.5,3.2078]
[1763403678874,3.2078,3051.6,3051.1,3.2078]
[1763403679077,3.2078,3051.6,3050.7,3.2078]
[1763403679278,0.6047,3051.1,3050.3,3.2078]
[1763403679581,3.81646545,3051.1,3050.3,3.2110579]
[1763403680277,3.2078,3050.7,3050.3,0.0032579]
[1763403681075,0.60866545,3051.1,3050.3,0.0032579]
[1763403681076,3.21176545,3051.1,3050.4,0.53154]
[1763403681273,3.21176545,3051.1,3050.6,0.53151]
[1763403681473,3.21176545,3051.1,3050.8,3.2078]
[1763403681474,0.00396545,3051.1,3050.8,3.2078]
[1763403682090,3.2078,3052.2,3051.0,0.53144]
[1763403682275,3.2078,3052.2,3051.4,3.2078]
[1763403682676,0.6047,3052.4,3051.0,3.2078]
[1763403682677,3.2078,3051.7,3051.0,3.2078]
[1763403683085,3.21590036,3051.7,3051.0,3.21271819]
[1763403683688,0.00810036,3051.7,3051.0,0.00491819]
[1763403684081,3.2078,3051.3,3051.0,0.00491819]
[1763403684389,0.6047,3051.6,3051.0,0.00491819]
[1763403684583,0.6047,3051.6,3051.0,3.21271819]
[1763403684584,3.8125,3051.6,3051.0,3.21271819]
[1763403684784,3.8125,3051.6,3051.0,0.00491819]
[1763403684996,0.6047,3051.6,3051.0,3.21271819]
[1763403685290,0.00810036,3051.7,3051.0,3.21271819]
[1763403685491,3.8125,3051.6,3051.0,3.21271819]
[1763403685782,3.8125,3051.6,3050.6,3.2078]
[1763403685978,3.2078,3051.0,3050.3,0.0032579]
[1763403687090,3.2078,3051.0,3050.5,0.53153]
[1763403687284,3.2078,3051.0,3050.5,3.2078]
[1763403688382,3.2078,3051.0,3050.3,0.0032579]
[1763403688583,0.6047,3051.6,3050.3,0.0032579]
[1763403688584,0.6193,3050.4,3050.3,0.0032579]
[1763403688776,0.6193,3050.4,3049.6,3.2078]
[1763403688982,3.2078,3050.1,3049.6,3.2078]
[1763403689281,3.2078,3050.1,3048.2,1.953]
[1763403689282,3.2078,3050.1,3049.1,3.2078]
[1763403689486,3.2078,3050.1,3049.2,0.53176]
[1763403689687,3.2078,3050.1,3049.6,3.2078]
[1763403689879,3.2078,3050.1,3049.6,3.21163967]
[1763403690288,0.6047,3051.6,3049.6,3.21163967]
[1763403690289,3.2078,3051.0,3050.3,0.53156]
[1763403690585,0.6047,3051.6,3050.6,0.53151]
[1763403690586,3.8125,3051.6,3050.6,0.53151]
[1763403690786,3.8125,3051.6,3050.9,0.53146]
[1763403690990,3.8125,3051.6,3050.5,3.2078]
[1763403691293,3.8125,3051.6,3050.9,0.53146]
[1763403691294,0.00491819,3051.4,3050.9,0.53146]
[1763403691488,0.00491819,3051.4,3051.1,0.53142]
[1763403691985,0.00491819,3051.4,3051.1,0.53143]
[1763403692491,3.2078,3052.0,3051.7,0.53132]
[1763403692692,3.2078,3052.0,3051.6,3.2078]
[1763403692891,3.2078,3052.0,3051.6,3.73914]
[1763403693192,3.2078,3052.0,3051.6,3.2078]
[1763403693393,3.2078,3052.0,3051.7,0.53131]
[1763403693588,3.21076996,3052.0,3051.2,3.2078]
[1763403693785,3.21076996,3052.0,3051.3,0.53139]
[1763403694093,0.00296996,3052.0,3051.8,0.53129]
[1763403694287,3.2078,3052.4,3051.8,0.00417107]
[1763403694591,3.2078,3052.8,3052.6,0.53116]
[1763403694781,3.2078,3053.4,3052.7,3.2078]
[1763403694982,3.2078,3053.4,3051.8,0.00417107]
[1763403694983,3.2078,3053.4,3052.8,3.2078]
[1763403695186,3.2078,3054.6,3053.2,3.2078]
[1763403695389,3.2078,3054.6,3052.0,3.495]
[1763403695390,0.00491819,3054.2,3053.8,3.2078]
[1763403695789,0.00491819,3054.2,3054.0,0.53091]
[1763403695990,0.00345798,3054.6,3054.0,0.53366146]
[1763403696191,0.00345798,3054.6,3054.5,3.2078]
[1763403696698,3.2078,3055.2,3054.5,3.2078]
[1763403696894,3.21271819,3055.2,3054.5,3.73863]
[1763403697191,0.00491819,3055.2,3054.4,3.2078]
[1763403697394,0.00491819,3055.2,3054.4,3.73865]
[1763403697597,3.2078,3055.1,3054.4,3.2078]
[1763403698292,0.00868776,3055.2,3054.8,3.2078]
[1763403698501,3.2078,3055.1,3054.4,3.2078]
[1763403698690,0.00868776,3055.2,3054.4,3.2078]
[1763403698889,0.00868776,3055.2,3055.0,3.73855]
[1763403699097,3.2078,3056.1,3055.0,3.2078]
[1763403699390,3.2078,3055.7,3055.0,3.2078]
[1763403699598,3.2078,3055.1,3054.5,3.2078]
[1763403700197,3.21560107,3055.1,3054.5,3.21270998]
[1763403700394,0.00780107,3055.1,3054.5,3.21270998]
[1763403702502,0.6193,3054.7,3054.5,3.21270998]
[1763403703194,0.00780107,3055.1,3054.5,3.21270998]
[1763403703899,0.00780107,3055.1,3053.2,5.318]
[1763403703900,3.2078,3054.6,3053.1,3.2078]
[1763403704197,3.2078,3053.2,3052.7,3.2078]
[1763403704394,3.2078,3053.6,3052.7,3.2078]
[1763403705105,0.00490998,3053.5,3052.8,0.00490998]
[1763403706100,0.00490998,3053.5,3053.3,3.2078]
[1763403706493,3.21270998,3053.5,3052.9,3.2078]
[1763403708803,0.00490998,3053.5,3052.9,3.2078]
[1763403711201,3.2078,3053.2,3052.8,0.00490998]
[1763403711510,0.6193,3053.0,3052.8,0.00490998]
[1763403711702,3.2078,3053.2,3052.8,0.00490998]
[1763403713297,2.27201154,3055.7,3053.0,7.0216]
[1763403713503,3.2078,3057.4,3055.3,3.2078]
[1763403713697,0.6193,3058.0,3053.8,3.278]
[1763403713698,4.64629259,3056.9,3055.4,1.917]
[1763403713894,4.64629259,3056.9,3054.4,0.87019724]
[1763403714094,0.6193,3055.8,3054.1,0.5309]
[1763403714308,0.6193,3055.8,3053.6,0.987]
[1763403714496,0.00490998,3055.0,3054.6,0.53081]
[1763403714699,0.00490998,3055.0,3054.9,3.2078]
[1763403718313,0.6566,3054.7,3054.2,3.2078]
[1763403718514,3.2078,3054.5,3053.6,0.00371273]
[1763403718713,0.6566,3053.6,3052.8,3.2078]
[1763403718915,3.2078,3053.3,3052.8,3.2078]
[1763403719117,1.12274008,3053.0,3052.8,3.2078]
[1763403719516,0.00490998,3053.2,3052.8,3.2078]
[1763403719718,0.0075212,3053.2,3052.8,3.21148706]
[1763403719913,0.0075212,3053.2,3053.0,0.53109]
[1763403720318,3.2078,3053.7,3053.6,0.53099]
[1763403720514,3.2078,3054.5,3053.9,0.53094]
[1763403720812,3.2078,3054.5,3053.3,3.2078]
[1763403720813,3.2078,3054.5,3054.0,3.2078]
[1763403721003,1.77934008,3053.6,3053.2,3.2078]
[1763403721204,0.6566,3053.6,3053.3,0.53104]
[1763403721407,1.7830632,3053.6,3053.2,3.73886]
[1763403721611,1.7830632,3053.6,3053.2,3.2078]
[1763403721820,1.12274008,3053.5,3053.2,3.2078]
[1763403722222,1.12274008,3053.3,3053.2,3.2078]
[1763403722919,1.12274008,3053.3,3052.8,3.21148706]
[1763403723126,0.66032312,3053.6,3052.8,3.21148706]
[1763403723127,0.66032312,3053.6,3053.2,3.2078]
[1763403723528,0.66032312,3053.6,3053.2,3.73885]
[1763403723728,0.66032312,3053.6,3053.2,3.2078]
[1763403724028,1.12274008,3053.3,3053.2,3.2078]
[1763403724229,4.33054008,3053.3,3052.8,0.00368706]
[1763403724431,4.33054008,3053.3,3052.6,0.00490998]
[1763403724432,4.33054008,3052.9,3052.6,0.00490998]
[1763403724619,3.2078,3052.9,3052.6,0.00490998]
[1763403724822,1.12274008,3052.7,3052.6,0.00490998]
[1763403725421,1.12274008,3052.7,3052.6,0.00824984]
[1763403726129,3.2078,3052.9,3052.6,0.00824984]
[1763403726430,0.66032312,3053.6,3053.0,0.53109]
[1763403726431,3.2078,3053.5,3053.0,0.53109]
[1763403726728,1.12274008,3053.0,3052.8,3.2078]
[1763403727123,1.12274008,3052.9,3052.8,3.2078]
[1763403727721,3.2078,3053.5,3052.6,0.00824984]
[1763403728122,3.2078,3053.0,3052.6,0.00824984]
[1763403728318,3.2078,3053.0,3051.1,11.798]
[1763403728319,0.6566,3052.5,3051.5,3.2078]
[1763403728522,3.2078,3051.8,3050.6,3.2078]
[1763403728725,3.8644,3051.4,3050.6,3.2078]
[1763403728926,0.6566,3051.4,3051.0,3.2078]
[1763403729336,0.65904877,3051.4,3051.0,3.21197694]
[1763403729724,0.00244877,3051.4,3051.1,0.53143]
[1763403729930,0.65904877,3051.4,3051.0,3.21197694]
[1763403730430,1.12274008,3051.1,3051.0,3.21197694]
[1763403730824,1.12274008,3051.1,3051.0,0.00417694]
[1763403731025,1.12274008,3051.1,3049.7,0.87019724]
[1763403731026,6.0,3051.0,3049.2,3.2078]
[1763403731241,1.12274008,3049.8,3049.2,3.2078]
[1763403731534,1.12274008,3049.8,3049.6,3.2078]
[1763403731727,3.8644,3050.3,3048.4,41.67019724]
[1763403731728,3.8644,3050.3,3049.2,3.2078]
[1763403732029,3.2078,3049.9,3049.4,0.00491811]
[1763403732431,0.00491811,3050.1,3049.6,3.2078]
[1763403733338,1.12274008,3049.9,3049.6,3.2078]
[1763403734532,0.00491811,3050.1,3049.6,3.2078]
[1763403734833,1.12274008,3050.0,3049.6,3.2078]
[1763403735040,1.12274008,3049.8,3049.6,3.2078]
[1763403735343,0.00491811,3050.1,3049.6,3.2078]
[1763403735530,1.12274008,3049.7,3049.6,3.2078]
[1763403735729,0.00491811,3050.1,3049.6,3.2078]
[1763403735939,1.12274008,3049.7,3049.4,0.00491811]
[1763403736240,0.00491811,3050.1,3049.2,0.00276184]
[1763403736241,3.2078,3049.5,3049.2,0.00276184]
[1763403736735,1.12274008,3049.3,3049.2,0.00276184]
[1763403737827,1.86474008,3049.0,3048.8,3.2078]
[1763403738030,0.742,3049.0,3048.8,3.2078]
[1763403738230,1.12274008,3048.9,3048.8,3.2078]